bitfinex/quotes_SOLUSD_20240702
["timestamp","ask_amount","ask_price","bid_price","bid_amount"]
[1719923142443,12.9074013,149.88,149.83,12.05]
[1719923143361,12.9074013,149.88,149.8,70.10724412]
[1719923143662,12.9074013,149.88,149.83,12.05]
[1719923143834,34.4603,149.87,149.77,106.81416578]
[1719923144154,12.05,149.86,149.78,20.0]
[1719923144342,12.05,149.85,149.78,20.0]
[1719923144549,12.05,149.85,149.77,106.81416578]
[1719923144728,12.05,149.85,149.77,100.0]
[1719923144934,12.05,149.85,149.81,12.05]
[1719923145133,12.05,149.85,149.8,12.05]
[1719923145333,12.05,149.85,149.81,12.05]
[1719923145540,12.05,149.86,149.77,105.22041801]
[1719923145728,12.05,149.85,149.8,12.05]
[1719923146354,22.4103,149.87,149.8,12.05]
[1719923146533,12.05,149.85,149.8,12.05]
[1719923146738,22.4103,149.87,149.82,12.05]
[1719923146739,12.05,149.86,149.82,12.05]
[1719923147635,12.05,149.86,149.83,1.33460549]
[1719923147836,22.4103,149.87,149.82,12.05]
[1719923148043,34.4603,149.87,149.82,12.05]
[1719923148245,22.4103,149.87,149.83,12.05]
[1719923148456,22.4103,149.87,149.84,12.05]
[1719923148832,22.4103,149.87,149.77,100.0]
[1719923148833,15.8193,149.87,149.77,100.0]
[1719923149032,12.05,149.86,149.81,12.05]
[1719923149234,15.8193,149.87,149.84,12.05]
[1719923149461,27.8693,149.87,149.83,12.05]
[1719923149629,27.8693,149.87,149.82,12.05]
[1719923149833,12.05,149.86,149.81,12.05]
[1719923150446,15.8193,149.87,149.81,12.05]
[1719923150750,12.05,149.86,149.81,12.05]
[1719923152365,15.8193,149.87,149.82,12.05]
[1719923152530,0.8574013,149.88,149.86,112.05]
[1719923152735,6.9620112,149.94,149.87,12.05]
[1719923152736,12.05,149.94,149.87,12.05]
[1719923152957,12.05,149.94,149.89,12.05]
[1719923153252,12.05,149.94,149.9,1.33398551]
[1719923154348,21.3073,149.95,149.84,100.0]
[1719923154552,12.05,149.94,149.89,12.05]
[1719923154735,12.05,149.94,149.84,100.0]
[1719923154939,12.05,149.94,149.89,12.05]
[1719923155443,21.3073,149.95,149.85,20.0]
[1719923155655,12.05,149.94,149.89,12.05]
[1719923156035,12.05,149.93,149.88,12.05]
[1719923157256,12.05,149.94,149.89,12.05]
[1719923157563,12.05,149.93,149.88,12.05]
[1719923157947,12.05,149.92,149.83,26.1184836]
[1719923158154,12.05,149.92,149.87,12.05]
[1719923158353,21.3073,149.95,149.87,12.05]
[1719923158556,21.3073,149.95,149.88,12.05]
[1719923158743,12.05,149.93,149.88,12.05]
[1719923159248,12.05,149.93,149.83,31.33644341]
[1719923159580,12.05,149.91,149.86,12.05]
[1719923159758,12.05,149.92,149.87,12.05]
[1719923160841,12.05,149.92,149.83,26.1184836]
[1719923161063,12.05,149.92,149.87,12.05]
[1719923161560,12.05,149.91,149.86,12.05]
[1719923161764,21.585,150.0,149.9,12.05]
[1719923161966,12.05,149.95,149.87,48.2]
[1719923162177,12.05,149.95,149.9,12.05]
[1719923162458,28.2517,150.0,149.89,12.05]
[1719923162459,12.05,149.94,149.89,12.05]
[1719923162777,12.05,149.91,149.87,12.05]
[1719923163848,12.05,149.92,149.87,12.05]
[1719923164048,12.05,149.92,149.83,15.6721]
[1719923164244,12.05,149.92,149.87,12.05]
[1719923164449,12.05,149.91,149.86,12.05]
[1719923165272,12.05,149.91,149.83,15.6721]
[1719923165572,21.585,149.94,149.86,12.05]
[1719923165750,12.05,149.91,149.86,12.05]
[1719923166253,21.585,149.94,149.87,12.05]
[1719923166653,12.05,149.93,149.88,12.05]
[1719923166854,21.585,149.94,149.89,12.05]
[1719923167049,33.635,149.94,149.89,12.05]
[1719923168149,21.585,149.94,149.86,100.0]
[1719923168350,33.635,149.94,149.89,12.05]
[1719923169364,33.635,149.94,149.86,100.0]
[1719923169672,12.05,149.93,149.88,12.05]
[1719923169848,12.05,149.93,149.86,100.0]
[1719923170049,12.05,149.93,149.88,12.05]
[1719923170554,21.585,149.94,149.88,12.05]
[1719923170765,33.635,149.94,149.89,12.05]
[1719923172661,21.585,149.94,149.9,12.05]
[1719923172860,33.635,149.94,149.89,12.05]
[1719923174362,33.635,149.94,149.86,100.0]
[1719923174873,12.05,149.93,149.88,12.05]
[1719923175458,21.585,149.94,149.88,12.05]
[1719923175658,12.05,149.93,149.88,12.05]
[1719923175866,12.05,149.93,149.86,100.0]
[1719923176177,12.05,149.93,149.83,15.6721]
[1719923176362,12.05,149.91,149.86,12.05]
[1719923176567,12.05,149.91,149.82,100.0]
[1719923176876,12.05,149.91,149.86,12.05]
[1719923177355,21.585,149.94,149.87,1.33432038]
[1719923177556,12.05,149.91,149.87,1.33432038]
[1719923177756,21.585,149.94,149.87,13.38432038]
[1719923177975,12.05,149.92,149.87,13.38432038]
[1719923178173,12.05,149.91,149.86,12.05]
[1719923178370,21.585,149.94,149.8,18.05895102]
[1719923178371,15.2641,149.93,149.8,18.05895102]
[1719923178570,12.05,149.87,149.79,115.1879]
[1719923178881,12.05,149.87,149.82,12.05]
[1719923180567,15.2641,149.88,149.82,12.05]
[1719923180767,12.05,149.87,149.82,12.05]
[1719923181373,15.2641,149.88,149.82,12.05]
[1719923181569,15.2641,149.88,149.76,414.86351187]
[1719923181570,12.05,149.84,149.8,12.05]
[1719923182059,12.05,149.85,149.8,12.05]
[1719923182863,12.05,149.85,149.76,494.75351187]
[1719923183062,12.05,149.85,149.8,12.05]
[1719923183276,6.1815,149.86,149.79,12.05]
[1719923183593,15.2641,149.88,149.78,100.0]
[1719923183767,12.05,149.86,149.81,12.05]
[1719923184283,15.2641,149.88,149.82,1.33466927]
[1719923184467,15.2641,149.88,149.82,12.05]
[1719923184661,15.2641,149.88,149.78,100.0]
[1719923184662,12.05,149.87,149.78,100.0]
[1719923184867,12.05,149.87,149.82,12.05]
[1719923185063,12.05,149.87,149.78,100.0]
[1719923185263,12.05,149.87,149.82,12.05]
[1719923185486,12.05,149.86,149.81,12.05]
[1719923185781,12.05,149.86,149.82,12.05]
[1719923186280,15.2641,149.88,149.82,12.05]
[1719923186581,15.2641,149.88,149.84,12.05]
[1719923186790,15.2641,149.88,149.85,1.33443603]
[1719923187296,15.2641,149.88,149.84,12.05]
[1719923187464,15.2641,149.88,149.85,13.3844371]
[1719923187663,15.2641,149.88,149.85,12.05]
[1719923188277,15.2641,149.88,149.86,1.33434665]
[1719923188483,6.1507,149.91,149.87,12.05]
[1719923188685,6.1507,149.91,149.84,100.0]
[1719923188686,18.2007,149.91,149.86,12.05]
[1719923190773,18.2007,149.91,149.87,12.05]
[1719923190965,17.31896035,149.91,149.87,12.05]
[1719923191376,5.26896035,149.91,149.87,12.05]
[1719923191776,17.31896035,149.91,149.87,12.05]
[1719923192270,5.26896035,149.91,149.87,12.05]
[1719923193088,5.26896035,149.91,149.82,100.0]
[1719923193288,17.31896035,149.91,149.87,12.05]
[1719923193688,17.31896035,149.91,149.82,100.0]
[1719923193886,17.31896035,149.91,149.86,12.05]
[1719923194585,17.31896035,149.91,149.82,100.0]
[1719923194791,17.31896035,149.91,149.86,12.05]
[1719923195174,5.26896035,149.91,149.86,12.05]
[1719923195375,17.31896035,149.91,149.86,12.05]
[1719923195596,17.31896035,149.91,149.8,120.72981454]
[1719923195893,12.05,149.9,149.85,12.05]
[1719923196578,5.26896035,149.91,149.85,12.05]
[1719923196778,12.05,149.9,149.85,12.05]
[1719923198193,5.26896035,149.91,149.85,12.05]
[1719923198374,5.26896035,149.91,149.87,12.05]
[1719923198776,17.31896035,149.91,149.87,12.05]
[1719923198974,17.31896035,149.91,149.86,12.05]
[1719923200406,5.26896035,149.91,149.87,12.05]
[1719923200694,17.31896035,149.91,149.87,12.05]
[1719923201084,17.31896035,149.91,149.82,100.0]
[1719923201285,17.31896035,149.91,149.87,12.05]
[1719923201691,5.26896035,149.91,149.87,12.05]
[1719923201877,17.31896035,149.91,149.87,12.05]
[1719923202295,5.26896035,149.91,149.87,12.05]
[1719923202484,17.31896035,149.91,149.87,12.05]
[1719923202688,17.31896035,149.91,149.82,100.0]
[1719923202889,17.31896035,149.91,149.87,12.05]
[1719923203997,5.26896035,149.91,149.87,12.05]
[1719923204199,17.31896035,149.91,149.87,12.05]
[1719923204805,5.26896035,149.91,149.87,12.05]
[1719923205788,5.26896035,149.91,149.88,12.05]
[1719923208111,5.26896035,149.91,149.89,12.05]
[1719923208299,16.0109,149.92,149.89,12.05]
[1719923209004,6.5925,149.95,149.91,12.05]
[1719923209214,6.5925,149.95,149.92,13.38381871]
[1719923209509,6.5925,149.95,149.88,100.0]
[1719923209510,6.5925,149.95,149.91,12.05]
[1719923210394,6.5925,149.95,149.9,12.05]
[1719923210815,18.6425,149.95,149.9,12.05]
[1719923212326,6.5925,149.95,149.9,12.05]
[1719923212488,18.6425,149.95,149.88,100.0]
[1719923212691,18.6425,149.95,149.9,12.05]
[1719923213097,6.5925,149.95,149.87,48.2]
[1719923213293,18.6425,149.95,149.9,12.05]
[1719923213708,6.5925,149.95,149.91,12.05]
[1719923214308,6.5925,149.95,149.86,100.0]
[1719923214518,18.6425,149.95,149.9,12.05]
[1719923214819,18.6425,149.95,149.91,12.05]
[1719923215384,6.5925,149.95,149.88,100.0]
[1719923215702,18.6425,149.95,149.91,12.05]
[1719923216755,6.5925,149.95,149.91,12.05]
[1719923217043,18.6425,149.95,149.91,12.05]
[1719923217531,6.5925,149.95,149.91,12.05]
[1719923218434,6.5925,149.95,149.87,48.2]
[1719923218740,18.6425,149.95,149.91,12.05]
[1719923220424,6.5925,149.95,149.91,12.05]
[1719923220615,18.6425,149.95,149.91,12.05]
[1719923221533,6.5925,149.95,149.91,12.05]
[1719923223601,6.5925,149.95,149.9,36.23771135]
[1719923223807,6.5925,149.95,149.91,12.05]
[1719923224026,6.5925,149.95,149.9,36.23771135]
[1719923224236,6.5925,149.95,149.91,12.05]
[1719923225532,6.5925,149.95,149.92,12.05]
[1719923225719,6.5925,149.95,149.93,12.05]
[1719923227029,6.5925,149.95,149.92,12.05]
[1719923228139,6.5925,149.95,149.93,12.05]
[1719923229428,16.2741,149.96,149.93,12.05]
[1719923229630,16.2741,149.96,149.94,12.05]
[1719923230640,16.2741,149.96,149.9,36.23771135]
[1719923230807,16.2741,149.96,149.92,12.05]
[1719923231321,16.2741,149.96,149.93,12.05]
[1719923231825,16.2741,149.96,149.92,12.05]
[1719923232040,16.2741,149.96,149.9,36.23771135]
[1719923232219,16.2741,149.96,149.92,12.05]
[1719923234337,12.05,149.94,149.9,36.23771135]
[1719923234715,18.4579,149.93,149.9,36.23771135]
[1719923235831,12.05,149.92,149.9,36.23771135]
[1719923236030,12.05,149.91,149.9,36.23771135]
[1719923240017,6.4079,149.93,149.9,36.23771135]
[1719923240321,12.05,149.91,149.9,36.23771135]
[1719923242221,6.4079,149.93,149.9,36.23771135]
[1719923242621,16.2741,149.96,149.9,36.23771135]
[1719923242826,16.2741,149.96,149.9,37.5717361]
[1719923243030,16.2741,149.96,149.92,12.05]
[1719923243242,16.2741,149.96,149.93,1.33375391]
[1719923243426,16.2741,149.96,149.92,12.05]
[1719923245143,28.3241,149.96,149.91,12.05]
[1719923245440,28.3241,149.96,149.9,48.28771135]
[1719923245441,12.05,149.95,149.9,48.28771135]
[1719923245640,16.2741,149.96,149.9,48.28771135]
[1719923245853,12.05,149.95,149.9,48.28771135]
[1719923246536,12.05,149.95,149.9,36.23771135]
[1719923246725,12.05,149.95,149.9,48.28771135]
[1719923246929,12.05,149.95,149.91,12.05]
[1719923247129,12.05,149.95,149.9,36.23771135]
[1719923247329,16.2741,149.96,149.9,36.23771135]
[1719923247538,12.05,149.92,149.9,36.23771135]
[1719923248438,16.2741,149.96,149.9,36.23771135]
[1719923248645,12.05,149.93,149.9,36.23771135]
[1719923248823,12.05,149.92,149.9,36.23771135]
[1719923249233,16.2741,149.96,149.9,36.23771135]
[1719923249438,12.05,149.93,149.9,36.23771135]
[1719923250641,16.2741,149.96,149.9,36.23771135]
[1719923250847,12.05,149.92,149.9,36.23771135]
[1719923252448,16.2741,149.96,149.9,36.23771135]
[1719923252649,12.05,149.93,149.9,36.23771135]
[1719923253745,12.05,149.92,149.9,36.23771135]
[1719923253946,12.05,149.91,149.9,36.23771135]
[1719923254147,6.2322,149.92,149.9,36.23771135]
[1719923254332,12.05,149.91,149.9,36.23771135]
[1719923255946,6.2322,149.92,149.9,36.23771135]
[1719923255947,18.2822,149.92,149.9,36.23771135]
[1719923256748,22.8044,149.96,149.9,36.23771135]
[1719923256949,12.05,149.92,149.9,36.23771135]
[1719923257330,12.05,149.93,149.9,36.23771135]
[1719923258750,12.05,149.92,149.9,36.23771135]
[1719923259145,29.473,149.96,149.9,36.23771135]
[1719923259343,22.8044,149.96,149.9,36.23771135]
[1719923260060,22.8044,149.96,149.9,48.28771135]
[1719923260243,12.05,149.95,149.91,13.38383076]
[1719923260429,16.2741,149.96,149.91,12.05]
[1719923260742,12.05,149.95,149.91,12.05]
[1719923261136,12.05,149.95,149.9,36.23771135]
[1719923261335,12.05,149.95,149.91,12.05]
[1719923262440,12.05,149.94,149.9,36.23771135]
[1719923263564,12.05,149.95,149.9,48.28771135]
[1719923264461,6.6671,149.99,149.9,48.28771135]
[1719923264652,12.05,149.95,149.9,48.28771135]
[1719923265754,12.05,149.94,149.9,36.23771135]
[1719923266345,6.6676,149.98,149.9,36.23771135]
[1719923266539,12.05,149.94,149.9,36.23771135]
[1719923266743,12.05,149.95,149.9,48.28771135]
[1719923267147,29.3006,150.0,149.9,48.28771135]
[1719923267335,12.05,149.95,149.9,48.28771135]
[1719923269164,12.05,149.94,149.9,48.28771135]
[1719923269379,6.6673,149.99,149.9,48.28771135]
[1719923269548,12.05,149.95,149.9,48.28771135]
[1719923270471,12.05,149.96,149.9,36.23771135]
[1719923270781,12.05,149.95,149.91,12.05]
[1719923271159,12.05,149.96,149.91,12.05]
[1719923272252,29.3004,150.0,149.91,12.05]
[1719923272444,12.05,149.96,149.91,12.05]
[1719923272641,12.05,149.96,149.92,12.05]
[1719923272848,12.05,149.96,149.9,36.23771135]
[1719923274268,29.3006,150.0,149.9,36.23771135]
[1719923274476,12.05,149.96,149.9,36.23771135]
[1719923276789,20.0,149.99,149.9,48.28771135]
[1719923276982,12.05,149.95,149.9,48.28771135]
[1719923277363,20.0,149.99,149.91,12.05]
[1719923277761,12.05,149.96,149.91,12.05]
[1719923277968,12.05,149.96,149.9,36.23771135]
[1719923278163,12.05,149.96,149.91,12.05]
[1719923279584,0.8574013,150.03,149.92,118.8013]
[1719923279761,12.05,150.01,149.96,12.05]
[1719923280284,0.8574013,150.03,149.96,12.05]
[1719923280785,12.05,150.01,149.96,12.05]
[1719923281161,22.209,150.0,149.9,36.23771135]
[1719923281372,6.6674,149.99,149.9,36.23771135]
[1719923281574,12.05,149.95,149.9,48.28771135]
[1719923281778,26.6672,149.99,149.9,48.28771135]
[1719923281966,12.05,149.95,149.91,12.05]
[1719923282562,20.0,149.99,149.91,12.05]
[1719923282879,12.05,149.95,149.91,12.05]
[1719923283080,28.8757,150.0,149.93,12.05]
[1719923283081,12.05,149.98,149.93,12.05]
[1719923283475,12.05,149.98,149.9,36.23771135]
[1719923283679,12.05,149.97,149.92,12.05]
[1719923284186,22.209,150.0,149.92,12.05]
[1719923284382,12.05,149.97,149.92,12.05]
[1719923284680,12.05,149.97,149.93,12.05]
[1719923285595,12.05,149.98,149.93,12.05]
[1719923285778,0.8574013,150.03,149.94,12.05]
[1719923285970,12.05,149.99,149.94,12.05]
[1719923286371,27.5228013,150.03,149.94,12.05]
[1719923286795,12.05,149.99,149.94,12.05]
[1719923286970,27.5228013,150.03,149.93,15.0265]
[1719923287170,12.05,149.98,149.93,27.0765]
[1719923287665,12.05,149.99,149.94,12.05]
[1719923288174,12.05,149.99,149.93,15.0265]
[1719923288572,12.05,149.99,149.94,12.05]
[1719923289289,12.05,149.98,149.93,27.0765]
[1719923290475,12.05,149.98,149.94,12.05]
[1719923291074,12.05,149.99,149.94,12.05]
[1719923291372,12.05,149.98,149.94,12.05]
[1719923292697,12.05,150.0,149.95,12.05]
[1719923293273,20.8574013,150.03,149.94,12.05]
[1719923293467,12.05,149.99,149.94,12.05]
[1719923295010,12.05,149.98,149.93,15.0265]
[1719923295173,12.05,149.98,149.93,27.0765]
[1719923295681,12.05,149.98,149.93,12.05]
[1719923295992,12.05,149.98,149.9,36.23771135]
[1719923295993,12.05,149.97,149.92,13.38380085]
[1719923296499,12.05,149.97,149.92,12.05]
[1719923296986,12.05,149.98,149.93,12.05]
[1719923297506,20.8574013,150.03,149.93,12.05]
[1719923297686,12.05,149.97,149.9,36.23771135]
[1719923297996,12.05,149.97,149.93,12.05]
[1719923298494,12.05,150.01,149.9,36.23771135]
[1719923298495,22.4424,149.99,149.9,36.23771135]
[1719923298698,22.4424,149.99,149.9,48.28771135]
[1719923298999,12.05,149.95,149.9,48.28771135]
[1719923299178,12.05,149.95,149.91,12.05]
[1719923299876,12.05,149.95,149.9,36.23771135]
[1719923300079,12.05,149.95,149.9,48.28771135]
[1719923301278,12.05,149.95,149.9,36.23771135]
[1719923301478,12.05,149.95,149.9,48.28771135]
[1719923301683,12.05,149.96,149.91,12.05]
[1719923301879,22.4424,149.99,149.91,12.05]
[1719923302088,12.05,149.96,149.91,12.05]
[1719923303501,12.05,149.96,149.92,12.05]
[1719923303712,12.05,149.96,149.91,12.05]
[1719923304292,22.4424,149.99,149.92,12.05]
[1719923304293,12.05,149.97,149.92,12.05]
[1719923304495,22.4424,149.99,149.92,12.05]
[1719923304675,12.05,149.96,149.91,12.05]
[1719923305284,12.05,149.96,149.9,36.23771135]
[1719923305484,12.05,149.96,149.91,12.05]
[1719923305796,22.4424,149.99,149.9,36.23771135]
[1719923305797,12.05,149.93,149.9,36.23771135]
[1719923306091,29.1096,149.99,149.9,36.23771135]
[1719923306092,12.05,149.92,149.9,36.23771135]
[1719923306680,29.38524989,149.99,149.9,36.23771135]
[1719923306894,12.05,149.93,149.9,36.23771135]
[1719923307277,12.05,149.91,149.9,36.23771135]
[1719923308594,12.05,149.91,149.83,3.1819]
[1719923308595,6.6718,149.89,149.77,10.01521087]
[1719923308802,54.0711,149.91,149.76,15.9075]
[1719923308803,12.05,149.82,149.76,15.9075]
[1719923308977,12.05,149.81,149.76,15.9075]
[1719923309391,21.5988,149.85,149.76,27.9575]
[1719923309601,21.5988,149.85,149.77,12.05]
[1719923309784,12.05,149.81,149.77,12.05]
[1719923310095,12.05,149.82,149.77,12.05]
[1719923310298,21.5988,149.85,149.77,12.05]
[1719923310480,12.05,149.82,149.77,12.05]
[1719923310980,12.05,149.82,149.76,15.9075]
[1719923311183,21.5988,149.85,149.78,12.05]
[1719923311389,12.05,149.83,149.78,12.05]
[1719923312194,12.05,149.84,149.76,15.9075]
[1719923312493,21.1699,149.89,149.8,12.05]
[1719923312691,12.05,149.84,149.76,15.9075]
[1719923312893,12.05,149.84,149.79,12.05]
[1719923313076,12.05,149.84,149.8,12.05]
[1719923313282,21.1699,149.89,149.8,12.05]
[1719923313602,12.05,149.85,149.8,12.05]
[1719923314480,21.1699,149.89,149.77,100.0]
[1719923314806,12.05,149.87,149.82,12.05]
[1719923315297,21.1699,149.89,149.82,12.05]
[1719923315482,12.05,149.88,149.83,12.05]
[1719923315681,22.7841,149.93,149.85,12.05]
[1719923315896,12.05,149.9,149.85,12.05]
[1719923318789,12.05,149.89,149.84,12.05]
[1719923318990,12.05,149.89,149.82,16.0165]
[1719923319188,12.05,149.89,149.85,12.05]
[1719923320692,12.05,149.9,149.85,12.05]
[1719923322807,22.7841,149.93,149.85,12.05]
[1719923322986,22.7841,149.93,149.86,12.05]
[1719923323191,6.247,149.93,149.87,12.05]
[1719923323405,22.8781,149.97,149.88,12.05]
[1719923323406,29.29317381,149.97,149.88,12.05]
[1719923323684,12.05,149.93,149.88,12.05]
[1719923324496,29.29317381,149.97,149.89,12.05]
[1719923324709,12.05,149.94,149.89,12.05]
[1719923327015,22.3461,149.97,149.89,12.05]
[1719923327202,12.05,149.94,149.9,12.05]
[1719923327908,22.3461,149.97,149.9,12.05]
[1719923328111,6.136,149.97,149.91,1.33401139]
[1719923328288,12.05,149.97,149.92,12.05]
[1719923328494,70.0776,150.01,149.92,12.05]
[1719923328692,12.05,149.97,149.92,12.05]
[1719923329294,77.02357486,150.01,149.92,12.05]
[1719923329509,12.05,149.97,149.92,12.05]
[1719923329814,28.82357486,150.01,149.92,12.05]
[1719923330025,12.05,149.97,149.92,12.05]
[1719923330388,70.0776,150.01,149.92,12.05]
[1719923330594,12.05,149.97,149.92,12.05]
[1719923330820,12.05,149.97,149.88,116.2205]
[1719923331009,12.05,149.97,149.92,12.05]
[1719923331308,70.0776,150.01,149.92,12.05]
[1719923331515,12.05,149.97,149.92,12.05]
[1719923332311,12.05,149.96,149.91,12.05]
[1719923332708,12.05,149.95,149.9,12.05]
[1719923333109,12.05,149.96,149.91,12.05]
[1719923333507,12.05,149.96,149.88,16.2205]
[1719923333708,12.05,149.96,149.91,12.05]
[1719923336715,21.8776,150.01,149.91,12.05]
[1719923336910,12.05,149.97,149.88,16.2205]
[1719923337117,12.05,149.97,149.92,12.05]
[1719923337516,20.0,150.0,149.92,12.05]
[1719923337728,12.05,149.97,149.92,12.05]
[1719923338313,20.0,150.0,149.92,12.05]
[1719923338624,12.05,149.98,149.93,12.05]
[1719923339197,12.05,149.97,149.92,12.05]
[1719923339405,12.05,149.97,149.88,16.2205]
[1719923339722,12.05,149.97,149.92,12.05]
[1719923340427,20.0,150.0,149.93,12.05]
[1719923341040,12.05,149.98,149.93,12.05]
[1719923341230,6.2988,150.01,149.96,12.05]
[1719923341529,0.8574013,150.03,149.97,12.05]
[1719923341746,12.05,150.02,149.97,12.05]
[1719923342203,12.05,150.01,149.97,12.05]
[1719923343029,12.05,150.01,149.96,12.05]
[1719923344505,0.8574013,150.03,149.97,12.05]
[1719923344704,12.05,150.02,149.94,15.597]
[1719923344911,12.05,150.01,149.94,15.597]
[1719923345124,12.05,150.01,149.96,12.05]
[1719923348215,12.05,150.0,149.96,12.05]
[1719923348417,12.05,150.0,149.95,12.05]
[1719923348615,12.05,149.98,149.9,16.3654]
[1719923348827,12.05,149.98,149.93,12.05]
[1719923350529,48.2,150.01,149.93,12.05]
[1719923350733,12.05,149.99,149.94,12.05]
[1719923351031,12.05,149.98,149.93,12.05]
[1719923351228,7.5230013,150.03,149.93,12.05]
[1719923351229,48.2,150.01,149.93,12.05]
[1719923351438,12.05,149.97,149.9,16.3654]
[1719923351618,12.05,149.97,149.92,12.05]
[1719923351816,12.05,149.97,149.9,16.3654]
[1719923352017,12.05,149.97,149.92,12.05]
[1719923352416,48.2,150.01,149.92,12.05]
[1719923352623,12.05,149.97,149.92,12.05]
[1719923353022,12.05,149.98,149.93,12.05]
[1719923353228,54.8662,150.01,149.9,16.3654]
[1719923353533,12.05,149.95,149.9,16.3654]
[1719923353742,12.05,149.96,149.91,12.05]
[1719923354216,12.05,149.96,149.9,16.3654]
[1719923354418,12.05,149.95,149.9,16.3654]
[1719923354750,12.05,149.96,149.91,12.05]
[1719923355122,12.05,149.95,149.9,28.4154]
[1719923356544,22.8214,149.99,149.9,28.4154]
[1719923356722,12.05,149.95,149.9,28.4154]
[1719923357430,22.8214,149.99,149.9,28.4154]
[1719923357615,12.05,149.95,149.9,28.4154]
[1719923357820,12.05,149.95,149.91,12.05]
[1719923359534,22.8214,149.99,149.91,12.05]
[1719923359936,12.05,149.96,149.91,12.05]
[1719923360241,22.8214,149.99,149.92,12.05]
[1719923360631,22.8214,149.99,149.9,16.3654]
[1719923360632,22.4308013,150.03,149.94,12.05]
[1719923360824,12.05,149.99,149.94,12.05]
[1719923361436,22.4308013,150.03,149.94,12.05]
[1719923361639,12.05,149.99,149.91,100.0]
[1719923361843,12.05,149.99,149.94,12.05]
[1719923362739,22.4308013,150.03,149.94,12.05]
[1719923363049,12.05,149.99,149.94,12.05]
[1719923364551,29.0963013,150.03,149.91,100.0]
[1719923364731,12.05,149.99,149.95,12.05]
[1719923364931,12.05,149.99,149.91,100.0]
[1719923365158,12.05,149.99,149.95,12.05]
[1719923365535,12.05,150.0,149.95,12.05]
[1719923366452,22.4308013,150.03,149.95,12.05]
[1719923366649,12.05,150.0,149.95,12.05]
[1719923367443,22.4308013,150.03,149.95,12.05]
[1719923367638,12.05,150.0,149.91,100.0]
[1719923367838,12.05,150.0,149.95,12.05]
[1719923368039,12.05,149.99,149.95,12.05]
[1719923368756,12.05,150.0,149.95,12.05]
[1719923369137,7.2380013,150.03,149.95,27.8677]
[1719923369339,12.05,150.0,149.95,27.8677]
[1719923369552,12.05,150.0,149.96,12.05]
[1719923371356,0.8574013,150.03,149.97,12.05]
[1719923371660,12.05,150.02,149.97,12.05]
[1719923372457,0.8574013,150.03,149.97,12.05]
[1719923372861,12.05,150.02,149.97,12.05]